fUSD/lending_fUSD_20251001
["ID","MTS","AMOUNT","RATE_DAILY","PERIOD"]
[388642322,1759294233379,-151.0,0.00017398,2]
[388642323,1759294233388,-170.255334,0.00017398,2]
[388642324,1759294233397,-154.711759,0.00017398,2]
[388642325,1759294233407,-170.255334,0.00017398,2]
[388642326,1759294233542,-170.255334,0.00017398,2]
[388642327,1759294233630,-170.255334,0.00017398,2]
[388642328,1759294233640,-297.720938,0.00017398,2]
[388642329,1759294233650,-151.0,0.00017398,2]
[388642330,1759294233660,-151.0,0.00017398,2]
[388642331,1759294233669,-183.817239,0.00017398,2]
[388642332,1759294233678,-151.0,0.00017398,2]
[388642333,1759294233687,-56.92918605,0.00017398,2]
[388642334,1759294233707,-94.07081395,0.00017398,2]
[388642335,1759294233716,-151.0,0.00017398,2]
[388642336,1759294233725,-151.0,0.00017398,2]
[388642337,1759294233735,-151.0,0.00017398,2]
[388642338,1759294233745,-151.0,0.00017398,2]
[388642339,1759294233754,-151.0,0.00017398,2]
[388642340,1759294233769,-188.190371,0.00017398,2]
[388642341,1759294233779,-264.748396,0.00017398,2]
[388642342,1759294233788,-264.748396,0.00017398,2]
[388642343,1759294233797,-264.748396,0.00017398,2]
[388642344,1759294233807,-43.83964585,0.00017398,2]
[388642345,1759294233819,-220.90875015,0.00017398,2]
[388642346,1759294233828,-264.748396,0.00017398,2]
[388642347,1759294233837,-233.45473207,0.00017398,2]
[388642348,1759294233849,-31.29366393,0.00017398,2]
[388642349,1759294233858,-264.748396,0.00017398,2]
[388642350,1759294233867,-264.748396,0.00017398,2]
[388642351,1759294233876,-264.748396,0.00017398,2]
[388642352,1759294233887,-180.93759717,0.00017398,2]
[388642353,1759294233898,-83.81079883,0.00017398,2]
[388642354,1759294233907,-264.748396,0.00017398,2]
[388642355,1759294233917,-264.748396,0.00017398,2]
[388642356,1759294233926,-264.748396,0.00017398,2]
[388642357,1759294233935,-264.748396,0.00017398,2]
[388642358,1759294233944,-603.999531,0.00017398,2]
[388642359,1759294233954,-264.748396,0.00017398,2]
[388642360,1759294233963,-603.999531,0.00017398,2]
[388642361,1759294233972,-264.748396,0.00017398,2]
[388642362,1759294233981,-603.999531,0.00017398,2]
[388642363,1759294233990,-264.748396,0.00017398,2]
[388642364,1759294233999,-603.999531,0.00017398,2]
[388642365,1759294234008,-264.748396,0.00017398,2]
[388642366,1759294234017,-153.978943,0.00017398,2]
[388642367,1759294234026,-603.999531,0.00017398,2]
[388642368,1759294234035,-264.748396,0.00017398,2]
[388642369,1759294234044,-603.999531,0.00017398,2]
[388642370,1759294234053,-603.999531,0.00017398,2]
[388642371,1759294234063,-603.999531,0.00017398,2]
[388642372,1759294234072,-603.999531,0.00017398,2]
[388642373,1759294234081,-603.999531,0.00017398,2]
[388642374,1759294234091,-603.999531,0.00017398,2]
[388642375,1759294234099,-203.716748,0.00017398,2]
[388642376,1759294234110,-603.999531,0.00017398,2]
[388642377,1759294234120,-203.716748,0.00017398,2]
[388642378,1759294234129,-603.999531,0.00017398,2]
[388642379,1759294234139,-203.716748,0.00017398,2]
[388642380,1759294234148,-338.807988,0.00017398,2]
[388642381,1759294234157,-603.999531,0.00017398,2]
[388642382,1759294234167,-203.716748,0.00017398,2]
[388642383,1759294234176,-338.807988,0.00017398,2]
[388642384,1759294234185,-603.999531,0.00017398,2]
[388642385,1759294234195,-203.716748,0.00017398,2]
[388642386,1759294234206,-338.807988,0.00017398,2]
[388642387,1759294234215,-603.999531,0.00017398,2]
[388642388,1759294234224,-203.716748,0.00017398,2]
[388642389,1759294234234,-603.999531,0.00017398,2]
[388642390,1759294234243,-338.807988,0.00017398,2]
[388642391,1759294234252,-109.76178544,0.00017398,2]
[388642392,1759294234264,-93.95496256,0.00017398,2]
[388642393,1759294234274,-237.92938276,0.00017398,2]
[388642394,1759294234331,-366.07014824,0.00017398,2]
[388642395,1759294234341,-338.807988,0.00017398,2]
[388642396,1759294234350,-203.716748,0.00017398,2]
[388642397,1759294234361,-603.999531,0.00017398,2]
[388642398,1759294234370,-338.807988,0.00017398,2]
[388642399,1759294234380,-203.716748,0.00017398,2]
[388642400,1759294234393,-603.999529,0.00017398,2]
[388642401,1759294234402,-338.807988,0.00017398,2]
[388642402,1759294234411,-203.716748,0.00017398,2]
[388642403,1759294234421,-203.716748,0.00017398,2]
[388642404,1759294234431,-264.748398,0.00017398,2]
[388642405,1759294234441,-338.807988,0.00017398,2]
[388642406,1759294234451,-203.716748,0.00017398,2]
[388642407,1759294234460,-338.807988,0.00017398,2]
[388642408,1759294234470,-203.716748,0.00017398,2]
[388642409,1759294234479,-1244.064255,0.00017398,2]
[388642410,1759294234489,-338.807988,0.00017398,2]
[388642411,1759294234499,-203.716748,0.00017398,2]
[388642412,1759294234509,-1244.064255,0.00017398,2]
[388642413,1759294234519,-338.807988,0.00017398,2]
[388642414,1759294234528,-203.716748,0.00017398,2]
[388642415,1759294234537,-1244.064255,0.00017398,2]
[388642416,1759294234547,-203.716748,0.00017398,2]
[388642417,1759294234558,-338.807988,0.00017398,2]
[388642418,1759294234568,-1244.064255,0.00017398,2]
[388642419,1759294234578,-203.716748,0.00017398,2]
[388642420,1759294234587,-338.807988,0.00017398,2]
[388642421,1759294234596,-1244.064255,0.00017398,2]
[388642422,1759294234605,-203.716748,0.00017398,2]
[388642423,1759294234616,-338.807988,0.00017398,2]
[388642424,1759294234626,-203.716748,0.00017398,2]
[388642425,1759294234636,-1244.064255,0.00017398,2]
[388642426,1759294234646,-338.807988,0.00017398,2]
[388642427,1759294234655,-203.716746,0.00017398,2]
[388642428,1759294234664,-1244.064255,0.00017398,2]
[388642429,1759294234673,-338.807988,0.00017398,2]
[388642430,1759294234683,-151.0,0.00017398,2]
[388642431,1759294234692,-1244.064255,0.00017398,2]
[388642432,1759294234703,-338.807988,0.00017398,2]
[388642433,1759294234712,-151.0,0.00017398,2]
[388642434,1759294234723,-151.0,0.00017398,2]
[388642435,1759294234732,-1244.064255,0.00017398,2]
[388642436,1759294234742,-151.0,0.00017398,2]
[388642437,1759294234751,-338.807988,0.00017398,2]
[388642438,1759294234760,-151.0,0.00017398,2]
[388642439,1759294234770,-1244.064255,0.00017398,2]
[388642440,1759294234779,-152.194055,0.00017398,2]
[388642441,1759294234789,-338.807988,0.00017398,2]
[388642442,1759294234799,-158.230096,0.00017398,2]
[388642443,1759294234808,-1244.064255,0.00017398,2]
[388642444,1759294234818,-338.807996,0.00017398,2]
[388642445,1759294234827,-1244.064255,0.00017398,2]
[388642446,1759294234837,-1244.064255,0.00017398,2]
[388642447,1759294234847,-215.59013504,0.00017398,2]
[388642448,1759294234862,-1028.47411996,0.00017398,2]
[388642449,1759294234872,-1244.064255,0.00017398,2]
[388642450,1759294234882,-1244.064255,0.00017398,2]
[388642451,1759294234892,-1244.064255,0.00017398,2]
[388642452,1759294234902,-1244.064255,0.00017398,2]
[388642453,1759294234911,-1244.064255,0.00017398,2]
[388642454,1759294234923,-1244.064261,0.00017398,2]
[388642455,1759294234932,-151.0,0.00017398,2]
[388642456,1759294234941,-151.0,0.00017398,2]
[388642457,1759294234950,-151.0,0.00017398,2]
[388642458,1759294234959,-151.0,0.00017398,2]
[388642459,1759294234968,-151.0,0.00017398,2]
[388642460,1759294234978,-151.0,0.00017398,2]
[388642461,1759294234988,-151.0,0.00017398,2]
[388642462,1759294234997,-164.121512,0.00017398,2]
[388642463,1759294235007,-151.0,0.00017398,2]
[388642464,1759294235016,-151.0,0.00017398,2]
[388642465,1759294235025,-151.0,0.00017398,2]
[388642466,1759294235035,-151.0,0.00017398,2]
[388642467,1759294235044,-153.131039,0.00017398,2]
[388642468,1759294235053,-152.903502,0.00017398,2]
[388642469,1759294235063,-418.725348,0.00017398,2]
[388642470,1759294235072,-418.725348,0.00017398,2]
[388642471,1759294235081,-418.725348,0.00017398,2]
[388642472,1759294235093,-418.725348,0.00017398,2]
[388642473,1759294235104,-418.725348,0.00017398,2]
[388642474,1759294235114,-418.725348,0.00017398,2]
[388642475,1759294235125,-418.725348,0.00017398,2]
[388642476,1759294235135,-76.66850242,0.00017398,2]
[388642477,1759294235147,-74.33149758,0.00017398,2]
[388642478,1759294235157,-418.725348,0.00017398,2]
[388642479,1759294235167,-151.0,0.00017398,2]
[388642480,1759294235177,-418.725348,0.00017398,2]
[388642481,1759294235187,-151.0,0.00017398,2]
[388642482,1759294235196,-178.988631,0.00017398,2]
[388642483,1759294235205,-418.725348,0.00017398,2]
[388642484,1759294235215,-418.725348,0.00017398,2]
[388642485,1759294235224,-418.725348,0.00017398,2]
[388642486,1759294235233,-418.725348,0.00017398,2]
[388642487,1759294235243,-418.725348,0.00017398,2]
[388642488,1759294235252,-418.725348,0.00017398,2]
[388642489,1759294235261,-418.725348,0.00017398,2]
[388642490,1759294235271,-418.725348,0.00017398,2]
[388642491,1759294235282,-418.725348,0.00017398,2]
[388642492,1759294235291,-418.725348,0.00017398,2]
[388642493,1759294235301,-418.725344,0.00017398,2]
[388642494,1759294235310,-151.0,0.00017398,2]
[388642495,1759294235320,-151.0,0.00017398,2]
[388642496,1759294235329,-151.0,0.00017398,2]
[388642497,1759294235338,-152.858046,0.00017398,2]
[388642498,1759294235347,-156.294581,0.00017398,2]
[388642499,1759294235356,-156.294581,0.00017398,2]
[388642500,1759294235368,-156.294581,0.00017398,2]
[388642501,1759294235377,-156.294581,0.00017398,2]
[388642502,1759294235386,-156.294581,0.00017398,2]
[388642503,1759294235395,-156.294581,0.00017398,2]
[388642504,1759294235404,-151.0,0.00017398,2]
[388642505,1759294235413,-151.0,0.00017398,2]
[388642506,1759294235422,-156.294581,0.00017398,2]
[388642507,1759294235432,-156.294581,0.00017398,2]
[388642508,1759294235441,-153.977824,0.00017398,2]
[388642509,1759294235449,-152.260227,0.00017398,2]
[388642510,1759294235458,-151.0,0.00017398,2]
[388642511,1759294235467,-151.0,0.00017398,2]
[388642512,1759294235476,-159.910486,0.00017398,2]
[388642513,1759294235485,-151.0,0.00017398,2]
[388642514,1759294235494,-151.0,0.00017398,2]
[388642515,1759294235503,-242.823928,0.00017398,2]
[388642516,1759294235513,-242.823928,0.00017398,2]
[388642517,1759294235522,-242.823928,0.00017398,2]
[388642518,1759294235532,-242.823928,0.00017398,2]
[388642519,1759294235541,-242.823928,0.00017398,2]
[388642520,1759294235550,-242.823928,0.00017398,2]
[388642521,1759294235560,-242.823928,0.00017398,2]
[388642522,1759294235569,-286.215337,0.00017398,2]
[388642523,1759294235578,-242.823928,0.00017398,2]
[388642524,1759294235588,-286.215337,0.00017398,2]
[388642525,1759294235597,-286.215337,0.00017398,2]
[388642526,1759294235607,-286.215337,0.00017398,2]
[388642527,1759294235616,-286.215337,0.00017398,2]
[388642528,1759294235626,-286.215337,0.00017398,2]
[388642529,1759294235639,-286.215337,0.00017398,2]
[388642530,1759294235648,-286.215337,0.00017398,2]
[388642531,1759294235659,-151.0,0.00017398,2]
[388642532,1759294235669,-151.0,0.00017398,2]
[388642533,1759294235678,-2186.238454,0.00017398,2]
[388642534,1759294235687,-2186.238454,0.00017398,2]
[388642535,1759294235697,-2186.238454,0.00017398,2]
[388642536,1759294235707,-867.378866,0.00017398,2]
[388642537,1759294235716,-2186.238454,0.00017398,2]
[388642538,1759294235726,-867.378866,0.00017398,2]
[388642539,1759294235736,-2186.238454,0.00017398,2]
[388642540,1759294235746,-867.378866,0.00017398,2]
[388642541,1759294235756,-2186.238454,0.00017398,2]
[388642542,1759294235770,-867.378866,0.00017398,2]
[388642543,1759294235779,-2186.238454,0.00017398,2]
[388642544,1759294235789,-867.378866,0.00017398,2]
[388642545,1759294235799,-1416.08645062,0.00017398,2]
[388642546,1759294235821,-669.59427474,0.00017398,2]
[388642547,1759294235834,-100.55772864,0.00017398,2]
[388642548,1759294235844,-867.378866,0.00017398,2]
[388642549,1759294235854,-867.378866,0.00017398,2]
[388642550,1759294235864,-867.378866,0.00017398,2]
[388642551,1759294235873,-151.0,0.00017398,2]
[388642552,1759294235882,-151.0,0.00017398,2]
[388642553,1759294235892,-151.0,0.00017398,2]
[388642554,1759294235902,-151.0,0.00017398,2]
[388642555,1759294235912,-268.556191,0.00017398,2]
[388642556,1759294235922,-151.0,0.00017398,2]
[388642557,1759294235932,-151.0,0.00017398,2]
[388642558,1759294235941,-151.0,0.00017398,2]
[388642559,1759294235950,-151.0,0.00017398,2]
[388642560,1759294235961,-151.0,0.00017398,2]
[388642561,1759294235971,-151.0,0.00017398,2]
[388642562,1759294235980,-65.10004653,0.00017398,2]
[388642563,1759294235991,-85.89995347,0.00017398,2]
[388642564,1759294236001,-284.63550619,0.00017398,2]
[388642565,1759294236014,-626.78732283,0.00017398,2]
[388642566,1759294236026,-935.66626413,0.00017398,2]
[388642567,1759294236059,-547.48281846,0.00017398,2]
[388642575,1759294239281,-9147.99999998,0.00017398,2]
[388642576,1759294239292,-457.42808841,0.00017398,2]
[388642577,1759294239301,-151.0,0.00017398,2]
[388642578,1759294239311,-146.39371054,0.00017398,2]
[388642579,1759294239325,-11853.60628946,0.00017398,2]
[388642580,1759294239335,-1786.69984064,0.00017398,2]
[388642581,1759294239353,-694.22104089,0.00017398,2]
[388642582,1759294239364,-9519.07911847,0.00017398,2]
[388642583,1759294239373,-151.0,0.00017398,2]
[388642584,1759294239383,-151.0,0.00017398,2]
[388642585,1759294239392,-151.0,0.00017398,2]
[388642586,1759294239401,-151.0,0.00017398,2]
[388642587,1759294239411,-12000.0,0.00017398,2]
[388642588,1759294239420,-201.803328,0.00017398,2]
[388642589,1759294239429,-151.0,0.00017398,2]
[388642590,1759294239439,-151.0,0.00017398,2]
[388642591,1759294239449,-12000.0,0.00017398,2]
[388642592,1759294239458,-12000.0,0.00017398,2]
[388642593,1759294239467,-151.0,0.00017398,2]
[388642594,1759294239476,-151.0,0.00017398,2]
[388642595,1759294239485,-151.0,0.00017398,2]
[388642596,1759294239494,-151.0,0.00017398,2]
[388642597,1759294239504,-8327.59650219,0.00017398,2]
[388642598,1759294239515,-3672.40349781,0.00017398,2]
[388642599,1759294239524,-151.0,0.00017398,2]
[388642600,1759294239533,-4496.6819711,0.00017398,2]
[388642601,1759294239545,-3216.13058712,0.00017398,2]
[388642602,1759294239555,-541.76365674,0.00017398,2]
[388642603,1759294239566,-409.58447523,0.00017398,2]
[388642604,1759294239578,-918.76000178,0.00017398,2]
[388642605,1759294239589,-2417.07930803,0.00017398,2]
[388642606,1759294239599,-153.192232,0.00017398,2]
[388642607,1759294239608,-12000.0,0.00017398,2]
[388642608,1759294239616,-153.192232,0.00017398,2]
[388642609,1759294239625,-153.192232,0.00017398,2]
[388642610,1759294239635,-518.657245,0.00017398,2]
[388642611,1759294239645,-518.657245,0.00017398,2]
[388642612,1759294239655,-12000.0,0.00017398,2]
[388642613,1759294239671,-518.657245,0.00017398,2]
[388642614,1759294239681,-12000.0,0.00017398,2]
[388642615,1759294239690,-153.192232,0.00017398,2]
[388642616,1759294239699,-151.0,0.00017398,2]
[388642617,1759294239708,-12000.0,0.00017398,2]
[388642618,1759294239718,-153.192232,0.00017398,2]
[388642619,1759294239732,-215.029422,0.00017398,2]
[388642620,1759294239742,-153.192232,0.00017398,2]
[388642621,1759294239751,-518.657245,0.00017398,2]
[388642622,1759294239762,-518.657245,0.00017398,2]
[388642623,1759294239774,-10261.35212412,0.00017398,2]
[388642624,1759294239790,-936.38372823,0.00017398,2]
[388642625,1759294239826,-802.26414765,0.00017398,2]
[388642626,1759294239836,-518.657245,0.00017398,2]
[388642627,1759294239847,-2130.906106,0.00017398,2]
[388642628,1759294239857,-151.0,0.00017398,2]
[388642629,1759294239866,-153.192232,0.00017398,2]
[388642630,1759294239875,-151.0,0.00017398,2]
[388642631,1759294239885,-153.192232,0.00017398,2]
[388642632,1759294239895,-178.717467,0.00017398,2]
[388642633,1759294239904,-151.0,0.00017398,2]
[388642634,1759294239914,-518.657245,0.00017398,2]
[388642635,1759294239923,-153.192232,0.00017398,2]
[388642636,1759294239932,-178.717467,0.00017398,2]
[388642637,1759294239942,-518.657245,0.00017398,2]
[388642638,1759294239951,-178.717467,0.00017398,2]
[388642639,1759294239961,-518.657245,0.00017398,2]
[388642640,1759294239970,-151.0,0.00017398,2]
[388642641,1759294239980,-153.192232,0.00017398,2]
[388642642,1759294239990,-151.0,0.00017398,2]
[388642644,1759294239999,-153.192232,0.00017398,2]
[388642645,1759294240008,-178.717467,0.00017398,2]
[388642646,1759294240017,-151.0,0.00017398,2]
[388642647,1759294240026,-153.192232,0.00017398,2]
[388642648,1759294240036,-178.717467,0.00017398,2]
[388642649,1759294240045,-518.657245,0.00017398,2]
[388642650,1759294240055,-178.717467,0.00017398,2]
[388642651,1759294240065,-518.657245,0.00017398,2]
[388642652,1759294240074,-518.657245,0.00017398,2]
[388642653,1759294240084,-151.0,0.00017398,2]
[388642654,1759294240094,-178.717467,0.00017398,2]
[388642655,1759294240103,-151.0,0.00017398,2]
[388642656,1759294240112,-178.717467,0.00017398,2]
[388642657,1759294240121,-178.717467,0.00017398,2]
[388642658,1759294240131,-151.0,0.00017398,2]
[388642660,1759294240141,-178.717467,0.00017398,2]
[388642661,1759294240150,-151.0,0.00017398,2]
[388642662,1759294240159,-235.95514286,0.00017409,2]
[388642663,1759294240169,-407.29419,0.00017409,2]
[388642664,1759294240179,-24174.35278136,0.00017409,2]
[388642665,1759294240188,-13064.32612541,0.00017411,2]
[388642666,1759294240198,-1230.15857825,0.00017412,2]
[388642667,1759294240207,-9598.14786704,0.00017413,2]
[388642668,1759294240217,-3352.52722078,0.00017415,2]
[388642669,1759294240227,-4795.21580231,0.00017417,2]
[388642670,1759294240237,-2904.31630588,0.0001742,2]
[388642671,1759294240247,-3352.52722078,0.00017421,2]
[388642672,1759294240257,-238.87577567,0.00017424,2]
[388642673,1759294240268,-28257.95690833,0.0001743,2]
[388642674,1759294240277,-2904.31630588,0.0001743,2]
[388642675,1759294240287,-9598.14786704,0.00017431,2]
[388642676,1759294240297,-316.04066707,0.00017433,2]
[388642677,1759294240306,-28257.95690833,0.00017438,2]
[388642678,1759294240315,-238.87577567,0.00017439,2]
[388642679,1759294240325,-1325.16,0.00017439,2]
[388642680,1759294240335,-295.70595104,0.0001744,2]
[388642681,1759294240344,-19180.86320913,0.0001744,2]
[388642682,1759294240354,-4795.21580231,0.00017441,2]
[388642683,1759294240364,-1409.71165593,0.00017442,2]
[388642684,1759294240374,-3352.52722078,0.00017447,2]
[388642685,1759294240384,-119346.90214048,0.00017447,2]
[388642686,1759294240414,-178.717467,0.00017398,2]
[388642687,1759294240424,-399.932533,0.00017447,2]
[388642688,1759294241018,-178.717467,0.00017398,2]
[388642689,1759294241027,-151.0,0.00017398,2]
[388642690,1759294241037,-151.0,0.00017398,2]
[388642691,1759294241046,-151.0,0.00017398,2]
[388642692,1759294241055,-151.0,0.00017398,2]
[388642693,1759294241065,-4953.732533,0.00017447,2]
[388642694,1759294241077,-333.06634715,0.00017447,2]
[388642695,1759294241226,-505.455403,0.00017398,2]
[388642696,1759294241236,-151.0,0.00017398,2]
[388642697,1759294241246,-151.0,0.00017398,2]
[388642698,1759294241255,-2219.24189817,0.00017447,2]
[388642699,1759294241264,-1953.06779681,0.00017448,2]
[388642705,1759294243425,-505.455403,0.00017398,2]
[388642706,1759294243436,-151.0,0.00017398,2]
[388642707,1759294243445,-151.0,0.00017398,2]
[388642708,1759294243455,-505.455403,0.00017398,2]
[388642709,1759294243467,-151.0,0.00017398,2]
[388642710,1759294243476,-151.0,0.00017398,2]
[388642711,1759294243486,-505.455403,0.00017398,2]
[388642712,1759294243496,-130.43619409,0.00017398,2]
[388642713,1759294243508,-138.90244091,0.00017398,2]
[388642714,1759294243518,-505.455403,0.00017398,2]
[388642715,1759294243527,-5126.29056764,0.00017448,2]
[388642716,1759294243538,-450.95708411,0.00017448,2]
[388642717,1759294243981,-505.455403,0.00017398,2]
[388642718,1759294243991,-697.44831134,0.00017448,2]
[388642727,1759294532880,756.1832044,0.00016989,2]
[388642729,1759294577915,192.16,0.00030137,120]
[388642730,1759294707807,250.0,0.00017,2]
[388642732,1759294772005,161.67565475,0.00017,2]
[388642733,1759294799988,177.0,0.000169,2]
[388642738,1759294949086,159.0,0.00017,2]
[388642739,1759294954717,160.0,0.00017,3]
[388642740,1759294959651,160.0,0.00017,3]
[388642742,1759294967970,18285.05,0.0001674,2]
[388642743,1759294977433,159.0,0.00017,3]
[388642744,1759294983751,159.0,0.00017,3]
[388642745,1759295103212,166.89,0.00016695,2]
[388642746,1759295162775,327.08,0.00016694,2]
[388642747,1759295213923,224.95,0.00016698,2]
[388642751,1759295332060,173.0,0.000159,2]
[388642757,1759295431504,-250.0,0.00017066,2]
[388642758,1759295431515,-170.0,0.0001708,2]
[388642759,1759295431524,-887.77907655,0.00017083,2]
[388642760,1759295431534,-210.89,0.000171,2]
[388642761,1759295431544,-200.0,0.00017163,2]
[388642762,1759295431552,-170.96,0.00017195,2]
[388642763,1759295431562,-339.41183,0.0001727,2]
[388642764,1759295431571,-200.0,0.00017308,2]
[388642765,1759295431580,-542.63715,0.00017335,2]
[388642766,1759295431590,-150.02226193,0.00017361,2]
[388642767,1759295431599,-179.85,0.00017363,2]
[388642768,1759295431609,-2257.83,0.00017364,2]
[388642769,1759295431618,-201.44527264,0.00017364,2]
[388642770,1759295431629,-550.0,0.00017379,2]
[388642771,1759295431640,-1200.0,0.00017379,2]
[388642772,1759295431650,-151.0,0.0001738,2]
[388642773,1759295431659,-151.0,0.0001738,2]
[388642774,1759295431668,-151.0,0.0001738,2]
[388642775,1759295431677,-151.0,0.0001738,2]
[388642776,1759295431687,-151.0,0.0001738,2]
[388642777,1759295431697,-151.0,0.0001738,2]
[388642778,1759295431707,-35.82774984,0.0001738,2]
[388642779,1759295431720,-164.17225016,0.0001738,2]
[388642780,1759295431729,-151.0,0.0001738,2]
[388642781,1759295431738,-91.91490526,0.0001738,2]
[388642782,1759295431750,-59.08509474,0.0001738,2]
[388642783,1759295431759,-151.0,0.0001738,2]
[388642784,1759295431768,-151.0,0.0001738,2]
[388642785,1759295431778,-151.0,0.0001738,2]
[388642786,1759295431786,-151.0,0.0001738,2]
[388642787,1759295431796,-151.0,0.0001738,2]
[388642788,1759295431805,-151.0,0.0001738,2]
[388642789,1759295431814,-151.0,0.0001738,2]
[388642790,1759295431824,-151.0,0.0001738,2]
[388642791,1759295431833,-43.10106622,0.0001738,2]
[388642793,1759295431844,-107.89893378,0.0001738,2]
[388642795,1759295431854,-151.0,0.0001738,2]
[388642796,1759295431863,-151.0,0.0001738,2]
[388642797,1759295431873,-151.0,0.0001738,2]
[388642798,1759295431882,-66.13522033,0.0001738,2]
[388642799,1759295431894,-84.86477967,0.0001738,2]
[388642800,1759295431904,-151.0,0.0001738,2]
[388642801,1759295431913,-151.0,0.0001738,2]
[388642802,1759295431922,-151.0,0.0001738,2]
[388642803,1759295431931,-34.05557672,0.0001738,2]
[388642815,1759295432572,-465.94442328,0.0001738,2]
[388642816,1759295432581,-95.97817713,0.0001738,2]
[388642817,1759295432593,-404.02182287,0.0001738,2]
[388642818,1759295432602,-220.22501541,0.0001738,2]
[388642819,1759295432613,-279.77498459,0.0001738,2]
[388642820,1759295432911,-500.0,0.0001738,2]
[388642821,1759295432927,-27.72318741,0.0001738,2]
[388642822,1759295432938,-291.54705474,0.0001738,2]
[388642823,1759295432947,-1018.18181198,0.00017382,2]
[388642824,1759295432956,-151.0,0.00017387,2]
[388642825,1759295432965,-151.0,0.00017387,2]
[388642826,1759295432975,-497.9501931,0.00017389,2]
[388642827,1759295432984,-222.04488132,0.00017389,2]
[388642828,1759295432994,-500.0,0.00017389,2]
[388642829,1759295433004,-500.0,0.00017389,2]
[388642830,1759295433013,-267.3094523,0.00017389,2]
[388642831,1759295433022,-182.65208571,0.00017389,2]
[388642832,1759295433031,-5679.66652392,0.0001739,2]
[388642833,1759295433104,-605.92755394,0.0001739,2]
[388642834,1759295433115,-420.26169723,0.0001739,2]
[388642835,1759295433139,-2475.883476,0.0001739,2]
[388642836,1759295433150,-3160.13198742,0.0001739,2]
[388642837,1759295433161,-3678.39382607,0.0001739,2]
[388642838,1759295433175,-743.60537916,0.0001739,2]
[388642839,1759295433214,-288.44,0.0001738,2]
[388642840,1759295433223,-515.23,0.0001739,2]
[388642841,1759295433238,-10277.47855565,0.0001739,2]
[388642842,1759295433249,-490.14074149,0.0001739,2]
[388642843,1759295433260,-1247.82619242,0.0001739,2]
[388642844,1759295433275,-43922.16258053,0.0001739,2]
[388642845,1759295433286,-250.0,0.0001739,2]
[388642846,1759295433302,-874.81556192,0.0001739,2]
[388642850,1759295437386,-9257.02535602,0.0001739,2]
[388642857,1759295437445,-1252.49949946,0.0001739,2]
[388642858,1759295437458,-521.6,0.0001739,2]
[388642859,1759295437470,-370.9049188,0.0001739,2]
[388642860,1759295437481,-1070.85916688,0.0001739,2]
[388642861,1759295437492,-2316.96214503,0.0001739,2]
[388642862,1759295437503,-1476.42,0.0001739,2]
[388642863,1759295437561,-19813.23057777,0.0001739,2]
[388642864,1759295437572,-2166.37608666,0.0001739,2]
[388642865,1759295437583,-1000.18778537,0.0001739,2]
[388642866,1759295437617,-30071.91761141,0.0001739,2]
[388642867,1759295437628,-1441.80401011,0.0001739,2]
[388642868,1759295437640,-5301.32006969,0.0001739,2]
[388642869,1759295437675,-3992.60598495,0.0001739,2]
[388642870,1759295437687,-2331.10843896,0.0001739,2]
[388642871,1759295437733,-1106.55964437,0.0001739,2]
[388642872,1759295437744,-7637.54258579,0.0001739,2]
[388642879,1759295439409,-1177.95232909,0.0001739,2]
[388642881,1759295439420,-4289.61028403,0.0001739,2]
[388642883,1759295439432,-16010.0,0.0001739,2]
[388642885,1759295439465,-1007.65390319,0.0001739,2]
[388642886,1759295439476,-694.99999995,0.0001739,2]
[388642887,1759295439522,-355.89332665,0.0001739,2]
[388642888,1759295439844,-450.90158557,0.0001739,2]
[388642889,1759295439857,-5062.49903842,0.0001739,2]